fUSD/lending_fUSD_20260527
["ID","MTS","AMOUNT","RATE_DAILY","PERIOD"]
[423157405,1779897046000,-1328.0,0.00034452,60]
[423157403,1779897046000,-509.36344538,0.00034452,60]
[423157412,1779897046000,-1328.0,0.00034452,60]
[423157419,1779897046000,-563.0,0.00034452,60]
[423157433,1779897046000,-500.0,0.00034452,60]
[423157416,1779897046000,-563.0,0.00034452,60]
[423157420,1779897046000,-500.0,0.00034452,60]
[423157421,1779897046000,-563.0,0.00034452,60]
[423157417,1779897046000,-1328.0,0.00034452,60]
[423157422,1779897046000,-1328.0,0.00034452,60]
[423157425,1779897046000,-563.0,0.00034452,60]
[423157427,1779897046000,-500.0,0.00034452,60]
[423157428,1779897046000,-563.0,0.00034452,60]
[423157429,1779897046000,-1328.0,0.00034452,60]
[423157435,1779897046000,-563.0,0.00034452,60]
[423157432,1779897046000,-542.77531095,0.00034452,60]
[423157434,1779897046000,-1328.0,0.00034452,60]
[423157430,1779897046000,-500.0,0.00034452,60]
[423157408,1779897046000,-1328.0,0.00034452,60]
[423157418,1779897046000,-500.0,0.00034452,60]
[423157411,1779897046000,-563.0,0.00034452,60]
[423157385,1779897046000,-500.0,0.00034452,60]
[423157404,1779897046000,-1328.0,0.00034452,60]
[423157431,1779897046000,-563.0,0.00034452,60]
[423157374,1779897046000,-414.75105378,0.00034452,60]
[423157375,1779897046000,-489.0,0.00034452,60]
[423157383,1779897046000,-489.0,0.00034452,60]
[423157376,1779897046000,-489.0,0.00034452,60]
[423157379,1779897046000,-500.0,0.00034452,60]
[423157377,1779897046000,-489.0,0.00034452,60]
[423157382,1779897046000,-500.0,0.00034452,60]
[423157381,1779897046000,-500.0,0.00034452,60]
[423157384,1779897046000,-489.0,0.00034452,60]
[423157380,1779897046000,-489.0,0.00034452,60]
[423157378,1779897046000,-489.0,0.00034452,60]
[423157386,1779897046000,-489.0,0.00034452,60]
[423157407,1779897046000,-563.0,0.00034452,60]
[423157396,1779897046000,-340.01726706,0.00034452,60]
[423157387,1779897046000,-500.0,0.00034452,60]
[423157388,1779897046000,-489.0,0.00034452,60]
[423157390,1779897046000,-489.0,0.00034452,60]
[423157389,1779897046000,-500.0,0.00034452,60]
[423157393,1779897046000,-500.0,0.00034452,60]
[423157392,1779897046000,-500.0,0.00034452,60]
[423157394,1779897046000,-489.0,0.00034452,60]
[423157391,1779897046000,-500.0,0.00034452,60]
[423157399,1779897046000,-489.0,0.00034452,60]
[423157398,1779897046000,-489.0,0.00034452,60]
[423157400,1779897046000,-489.0,0.00034452,60]
[423157409,1779897046000,-563.0,0.00034452,60]
[423157410,1779897046000,-1328.0,0.00034452,60]
[423157397,1779897046000,-489.0,0.00034452,60]
[423157436,1779897046000,-395.94083929,0.00034452,60]
[423157395,1779897046000,-500.0,0.00034452,60]
[423157438,1779897046000,-563.0,0.00034452,60]
[423157469,1779897046000,-1328.0,0.00034452,60]
[423157473,1779897046000,-563.0,0.00034452,60]
[423157472,1779897046000,-435.0,0.00034452,2]
[423157474,1779897046000,-150.0,0.00034452,60]
[423157476,1779897046000,-150.0,0.00034452,60]
[423157477,1779897046000,-150.0,0.00034452,60]
[423157483,1779897046000,-563.0,0.00034452,60]
[423157484,1779897046000,-435.0,0.00034452,2]
[423157481,1779897046000,-1328.0,0.00034452,60]
[423157479,1779897046000,-435.0,0.00034452,2]
[423157475,1779897046000,-435.0,0.00034452,2]
[423157480,1779897046000,-152.7915746,0.00034452,60]
[423157482,1779897046000,-435.0,0.00034452,2]
[423157468,1779897046000,-435.0,0.00034452,2]
[423157478,1779897046000,-150.0,0.00034452,60]
[423157497,1779897046000,-230.0,0.00034767,30]
[423157485,1779897046000,-1328.0,0.00034452,60]
[423157496,1779897046000,-200.0,0.00034693,10]
[423157487,1779897046000,-435.0,0.00034452,2]
[423157490,1779897046000,-568.2243131,0.00034452,60]
[423157492,1779897046000,-245.24347086,0.00034453,2]
[423157491,1779897046000,-435.0,0.00034452,2]
[423157494,1779897046000,-150.0,0.00034521,2]
[423157488,1779897046000,-1348.38617582,0.00034452,60]
[423157493,1779897046000,-169.36,0.00034521,120]
[423157489,1779897046000,-435.0,0.00034452,2]
[423157498,1779897046000,-163.8451399,0.00034773,30]
[423157426,1779897046000,-1328.0,0.00034452,60]
[423157486,1779897046000,-563.0,0.00034452,60]
[423157467,1779897046000,-435.0,0.00034452,2]
[423157495,1779897046000,-1365.0,0.00034625,2]
[423157464,1779897046000,-500.0,0.00034452,60]
[423157448,1779897046000,-563.0,0.00034452,60]
[423157462,1779897046000,-500.0,0.00034452,60]
[423157444,1779897046000,-563.0,0.00034452,60]
[423157439,1779897046000,-1328.0,0.00034452,60]
[423157442,1779897046000,-563.0,0.00034452,60]
[423157440,1779897046000,-563.0,0.00034452,60]
[423157441,1779897046000,-1328.0,0.00034452,60]
[423157443,1779897046000,-1328.0,0.00034452,60]
[423157447,1779897046000,-1328.0,0.00034452,60]
[423157445,1779897046000,-563.0,0.00034452,60]
[423157446,1779897046000,-563.0,0.00034452,60]
[423157449,1779897046000,-1328.0,0.00034452,60]
[423157458,1779897046000,-435.0,0.00034452,2]
[423157450,1779897046000,-435.0,0.00034452,2]
[423157437,1779897046000,-1328.0,0.00034452,60]
[423157454,1779897046000,-435.0,0.00034452,2]
[423157465,1779897046000,-435.0,0.00034452,2]
[423157463,1779897046000,-435.0,0.00034452,2]
[423157466,1779897046000,-244.82538177,0.00034452,60]
[423157461,1779897046000,-435.0,0.00034452,2]
[423157459,1779897046000,-435.0,0.00034452,2]
[423157451,1779897046000,-435.0,0.00034452,2]
[423157470,1779897046000,-435.0,0.00034452,2]
[423157460,1779897046000,-563.0,0.00034452,60]
[423157453,1779897046000,-435.0,0.00034452,2]
[423157456,1779897046000,-1328.0,0.00034452,60]
[423157452,1779897046000,-563.0,0.00034452,60]
[423157457,1779897046000,-435.0,0.00034452,2]
[423157455,1779897046000,-435.0,0.00034452,2]
[423157471,1779897046000,-435.0,0.00034452,2]
[423157539,1779897047000,-1102.11452881,0.00035616,30]
[423157545,1779897047000,-500.0,0.00035616,30]
[423157537,1779897047000,-1000.0,0.00035616,30]
[423157531,1779897047000,-467.5,0.00035586,2]
[423157535,1779897047000,-1000.0,0.00035616,30]
[423157527,1779897047000,-1880.5242449,0.00035332,2]
[423157529,1779897047000,-6650.89004576,0.00035398,2]
[423157533,1779897047000,-6650.89004576,0.00035613,2]
[423157526,1779897047000,-160.43,0.0003523,30]
[423157534,1779897047000,-163.32966606,0.00035616,60]
[423157546,1779897047000,-500.0,0.00035616,30]
[423157541,1779897047000,-500.0,0.00035616,30]
[423157547,1779897047000,-500.0,0.00035616,30]
[423157538,1779897047000,-1000.0,0.00035616,30]
[423157540,1779897047000,-500.0,0.00035616,30]
[423157542,1779897047000,-500.0,0.00035616,30]
[423157544,1779897047000,-500.0,0.00035616,30]
[423157543,1779897047000,-500.0,0.00035616,30]
[423157548,1779897047000,-500.0,0.00035616,30]
[423157551,1779897047000,-500.0,0.00035616,30]
[423157550,1779897047000,-500.0,0.00035616,30]
[423157549,1779897047000,-500.0,0.00035616,30]
[423157532,1779897047000,-6650.89004576,0.00035608,2]
[423157553,1779897047000,-500.0,0.00035616,30]
[423157536,1779897047000,-1000.0,0.00035616,30]
[423157528,1779897047000,-6650.89004576,0.00035348,2]
[423157522,1779897047000,-215.14439636,0.00035097,30]
[423157524,1779897047000,-215.14439636,0.00035097,30]
[423157558,1779897047000,-500.0,0.00035616,30]
[423157500,1779897047000,-5947.24,0.000348,14]
[423157501,1779897047000,-226.23845699,0.00034801,30]
[423157499,1779897047000,-1500.0,0.00034795,2]
[423157502,1779897047000,-159.0,0.00034801,30]
[423157508,1779897047000,-186.0,0.00034802,30]
[423157506,1779897047000,-156.0,0.00034802,30]
[423157509,1779897047000,-195.0,0.00034802,30]
[423157510,1779897047000,-852.0,0.00034802,30]
[423157507,1779897047000,-276.0,0.00034802,30]
[423157503,1779897047000,-158.0,0.00034802,30]
[423157504,1779897047000,-279.0,0.00034802,30]
[423157530,1779897047000,-6650.89004576,0.00035428,2]
[423157505,1779897047000,-155.0,0.00034802,30]
[423157512,1779897047000,-945.96681288,0.00035,120]
[423157513,1779897047000,-4370.74904221,0.00035,7]
[423157514,1779897047000,-834.71067795,0.00035,120]
[423157515,1779897047000,-243.17539936,0.00035,120]
[423157516,1779897047000,-248.00977717,0.00035,120]
[423157519,1779897047000,-174.11852651,0.00035,120]
[423157517,1779897047000,-184.93250208,0.00035,120]
[423157518,1779897047000,-172.85304604,0.00035,120]
[423157520,1779897047000,-215.14439636,0.00035097,30]
[423157521,1779897047000,-215.14439636,0.00035097,30]
[423157523,1779897047000,-215.14439636,0.00035097,30]
[423157525,1779897047000,-150.0,0.00035124,2]
[423157511,1779897047000,-190.97,0.000349,30]
[423157552,1779897047000,-500.0,0.00035616,30]
[423157568,1779897047000,-500.0,0.00035616,30]
[423157559,1779897047000,-500.0,0.00035616,30]
[423157587,1779897047000,-1000.0,0.00035616,10]
[423157594,1779897047000,-1000.0,0.00035616,10]
[423157590,1779897047000,-1000.0,0.00035616,10]
[423157598,1779897047000,-1000.0,0.00035616,10]
[423157599,1779897047000,-1000.0,0.00035616,10]
[423157592,1779897047000,-1000.0,0.00035616,10]
[423157593,1779897047000,-1000.0,0.00035616,10]
[423157596,1779897047000,-1000.0,0.00035616,10]
[423157588,1779897047000,-1000.0,0.00035616,10]
[423157589,1779897047000,-1000.0,0.00035616,10]
[423157591,1779897047000,-1000.0,0.00035616,10]
[423157557,1779897047000,-500.0,0.00035616,30]
[423157595,1779897047000,-1000.0,0.00035616,10]
[423157600,1779897047000,-1000.0,0.00035616,10]
[423157602,1779897047000,-510.0,0.00035616,10]
[423157605,1779897047000,-1132.0,0.00035641,2]
[423157604,1779897047000,-6650.89004576,0.00035626,2]
[423157601,1779897047000,-1000.0,0.00035616,10]
[423157611,1779897047000,-300.99795142,0.00035746,2]
[423157603,1779897047000,-281.31,0.00035616,2]
[423157610,1779897047000,-300.0,0.00035746,2]
[423157606,1779897047000,-250.0,0.00035642,7]
[423157607,1779897047000,-1068.40163352,0.00035746,2]
[423157608,1779897047000,-727.07827244,0.00035746,2]
[423157609,1779897047000,-302.21937029,0.00035746,2]
[423157582,1779897047000,-228.9,0.00035616,120]
[423157583,1779897047000,-1000.0,0.00035616,10]
[423157597,1779897047000,-1000.0,0.00035616,10]
[423157581,1779897047000,-303.80851446,0.00035616,7]
[423157586,1779897047000,-1000.0,0.00035616,10]
[423157560,1779897047000,-500.0,0.00035616,30]
[423157556,1779897047000,-500.0,0.00035616,30]
[423157554,1779897047000,-500.0,0.00035616,30]
[423157555,1779897047000,-500.0,0.00035616,30]
[423157562,1779897047000,-500.0,0.00035616,30]
[423157561,1779897047000,-500.0,0.00035616,30]
[423157564,1779897047000,-500.0,0.00035616,30]
[423157563,1779897047000,-500.0,0.00035616,30]
[423157567,1779897047000,-500.0,0.00035616,30]
[423157573,1779897047000,-500.0,0.00035616,30]
[423157566,1779897047000,-500.0,0.00035616,30]
[423157565,1779897047000,-500.0,0.00035616,30]
[423157569,1779897047000,-500.0,0.00035616,30]
[423157579,1779897047000,-500.0,0.00035616,30]
[423157570,1779897047000,-500.0,0.00035616,30]
[423157580,1779897047000,-319.1543372,0.00035616,30]
[423157584,1779897047000,-1000.0,0.00035616,10]
[423157585,1779897047000,-1000.0,0.00035616,10]
[423157576,1779897047000,-500.0,0.00035616,30]
[423157578,1779897047000,-500.0,0.00035616,30]
[423157575,1779897047000,-500.0,0.00035616,30]
[423157571,1779897047000,-500.0,0.00035616,30]
[423157574,1779897047000,-500.0,0.00035616,30]
[423157572,1779897047000,-500.0,0.00035616,30]
[423157577,1779897047000,-500.0,0.00035616,30]
[423157652,1779897048000,-300.99795142,0.00035746,2]
[423157651,1779897048000,-300.0,0.00035746,2]
[423157657,1779897048000,-344.45437934,0.00035746,2]
[423157662,1779897048000,-950.32029804,0.00035746,2]
[423157647,1779897048000,-1068.40163352,0.00035746,2]
[423157641,1779897048000,-300.12808339,0.00035746,2]
[423157638,1779897048000,-300.0,0.00035746,2]
[423157642,1779897048000,-300.0,0.00035746,2]
[423157643,1779897048000,-605.31118564,0.00035746,2]
[423157648,1779897048000,-727.07827244,0.00035746,2]
[423157653,1779897048000,-300.0,0.00035746,2]
[423157650,1779897048000,-300.0,0.00035746,2]
[423157655,1779897048000,-300.0,0.00035746,2]
[423157665,1779897048000,-1148.83589152,0.00035746,2]
[423157656,1779897048000,-1263.96825586,0.00035746,2]
[423157659,1779897048000,-300.0,0.00035746,2]
[423157658,1779897048000,-527.62572404,0.00035746,2]
[423157661,1779897048000,-865.6208675,0.00035746,2]
[423157660,1779897048000,-300.0,0.00035746,2]
[423157663,1779897048000,-1800.09388364,0.00035746,2]
[423157675,1779897048000,-300.0,0.00035746,2]
[423157667,1779897048000,-300.0,0.00035746,2]
[423157674,1779897048000,-464.48677942,0.00035746,2]
[423157666,1779897048000,-310.02493426,0.00035746,2]
[423157668,1779897048000,-300.0,0.00035746,2]
[423157664,1779897048000,-300.0,0.00035746,2]
[423157654,1779897048000,-300.0,0.00035746,2]
[423157640,1779897048000,-493.38669858,0.00035746,2]
[423157672,1779897048000,-300.0,0.00035746,2]
[423157645,1779897048000,-300.0,0.00035746,2]
[423157613,1779897048000,-1263.96825586,0.00035746,2]
[423157623,1779897048000,-464.48677942,0.00035746,2]
[423157624,1779897048000,-300.0,0.00035746,2]
[423157612,1779897048000,-300.0,0.00035746,2]
[423157617,1779897048000,-950.32029804,0.00035746,2]
[423157616,1779897048000,-865.6208675,0.00035746,2]
[423157614,1779897048000,-344.45437934,0.00035746,2]
[423157615,1779897048000,-527.62572404,0.00035746,2]
[423157619,1779897048000,-1148.83589152,0.00035746,2]
[423157618,1779897048000,-1800.09388364,0.00035746,2]
[423157621,1779897048000,-594.79850986,0.00035746,2]
[423157622,1779897048000,-300.0,0.00035746,2]
[423157620,1779897048000,-310.02493426,0.00035746,2]
[423157644,1779897048000,-300.0,0.00035746,2]
[423157626,1779897048000,-452.52893397,0.00035746,2]
[423157627,1779897048000,-300.0,0.00035746,2]
[423157628,1779897048000,-466.72874829,0.00035746,2]
[423157637,1779897048000,-300.0,0.00035746,2]
[423157630,1779897048000,-484.76763572,0.00035746,2]
[423157636,1779897048000,-300.0,0.00035746,2]
[423157631,1779897048000,-310.28230408,0.00035746,2]
[423157632,1779897048000,-300.0,0.00035746,2]
[423157635,1779897048000,-300.0,0.00035746,2]
[423157629,1779897048000,-300.0,0.00035746,2]
[423157633,1779897048000,-1096.2926835,0.00035746,2]
[423157634,1779897048000,-300.0,0.00035746,2]
[423157649,1779897048000,-302.21937029,0.00035746,2]
[423157639,1779897048000,-300.0,0.00035746,2]
[423157625,1779897048000,-578.28315025,0.00035746,2]
[423157670,1779897048000,-300.0,0.00035746,2]
[423157646,1779897048000,-528.48327171,0.00035746,2]
[423157671,1779897048000,-594.79850986,0.00035746,2]
[423157709,1779897048000,-243.17539936,0.00036,120]
[423157704,1779897048000,-150.0,0.00035951,2]
[423157708,1779897048000,-834.71067795,0.00036,120]
[423157707,1779897048000,-945.96681288,0.00036,120]
[423157710,1779897048000,-248.00977717,0.00036,120]
[423157713,1779897048000,-160.0,0.00036,30]
[423157723,1779897048000,-6650.89004576,0.00036372,2]
[423157715,1779897048000,-6650.89004576,0.0003607,2]
[423157714,1779897048000,-293.646211,0.00036019,5]
[423157712,1779897048000,-174.11852651,0.00036,120]
[423157716,1779897048000,-6650.89004576,0.00036076,2]
[423157718,1779897048000,-2831.62,0.00036139,30]
[423157719,1779897048000,-6650.89004576,0.00036146,2]
[423157721,1779897048000,-150.0,0.00036247,2]
[423157720,1779897048000,-466.2,0.00036153,30]
[423157717,1779897048000,-415.24,0.000361,7]
[423157722,1779897048000,-6650.89004576,0.00036327,2]
[423157724,1779897048000,-141358.0,0.000364,30]
[423157727,1779897048000,-282.11143122,0.000365,30]
[423157726,1779897048000,-190.97,0.000365,30]
[423157733,1779897048000,-163.32966606,0.00036712,60]
[423157732,1779897048000,-330.0,0.00036679,41]
[423157730,1779897048000,-502.94,0.00036605,14]
[423157725,1779897048000,-467.5,0.00036475,2]
[423157728,1779897048000,-160.43,0.0003652,120]
[423157731,1779897048000,-6650.89004576,0.00036634,2]
[423157729,1779897048000,-6650.89004576,0.00036585,2]
[423157711,1779897048000,-172.85304604,0.00036,120]
[423157703,1779897048000,-6650.89004576,0.00035902,2]
[423157669,1779897048000,-300.0,0.00035746,2]
[423157701,1779897048000,-500.0,0.00035889,31]
[423157706,1779897048000,-33218.9209,0.00036,2]
[423157673,1779897048000,-300.0,0.00035746,2]
[423157676,1779897048000,-578.28315025,0.00035746,2]
[423157684,1779897048000,-310.28230408,0.00035746,2]
[423157678,1779897048000,-452.52893397,0.00035746,2]
[423157683,1779897048000,-484.76763572,0.00035746,2]
[423157681,1779897048000,-300.0,0.00035746,2]
[423157677,1779897048000,-300.0,0.00035746,2]
[423157687,1779897048000,-230.0,0.00035767,30]
[423157682,1779897048000,-300.0,0.00035746,2]
[423157680,1779897048000,-300.0,0.00035746,2]
[423157686,1779897048000,-6650.89004576,0.00035765,2]
[423157685,1779897048000,-300.0,0.00035746,2]
[423157689,1779897048000,-163.0,0.00035802,30]
[423157679,1779897048000,-300.0,0.00035746,2]
[423157688,1779897048000,-168.0,0.00035801,30]
[423157699,1779897048000,-160.43,0.0003588,98]
[423157702,1779897048000,-5947.24,0.000359,14]
[423157700,1779897048000,-499.08255755,0.00035889,31]
[423157692,1779897048000,-156.0,0.00035802,30]
[423157696,1779897048000,-852.0,0.00035802,30]
[423157697,1779897048000,-6650.89004576,0.00035819,2]
[423157691,1779897048000,-155.0,0.00035802,30]
[423157705,1779897048000,-150.0,0.00035951,2]
[423157698,1779897048000,-184.7831,0.00035837,2]
[423157693,1779897048000,-276.0,0.00035802,30]
[423157690,1779897048000,-279.0,0.00035802,30]
[423157695,1779897048000,-195.0,0.00035802,30]
[423157694,1779897048000,-186.0,0.00035802,30]
[423157775,1779897049000,-200.0,0.00037603,6]
[423157776,1779897049000,-355.67461094,0.00037626,14]
[423157779,1779897049000,-158.58,0.00037632,13]
[423157774,1779897049000,-200.0,0.00037603,6]
[423157773,1779897049000,-201.4,0.000376,15]
[423157766,1779897049000,-200.0,0.00037574,6]
[423157769,1779897049000,-200.0,0.00037591,6]
[423157763,1779897049000,-6650.89004576,0.00037544,2]
[423157765,1779897049000,-199.97,0.00037568,120]
[423157767,1779897049000,-200.0,0.00037575,6]
[423157780,1779897049000,-150.0,0.00037636,120]
[423157770,1779897049000,-197.980284,0.00037597,14]
[423157778,1779897049000,-158.57,0.00037632,13]
[423157788,1779897049000,-160.44,0.0003781,86]
[423157777,1779897049000,-157.90300786,0.00037628,2]
[423157782,1779897049000,-181.6629453,0.00037745,120]
[423157784,1779897049000,-500.0,0.00037769,120]
[423157785,1779897049000,-23325.06390724,0.00037799,2]
[423157783,1779897049000,-500.0,0.00037769,120]
[423157797,1779897049000,-151.0,0.00037896,14]
[423157798,1779897049000,-151.0,0.00037896,14]
[423157789,1779897049000,-165.037,0.00037821,2]
[423157786,1779897049000,-266.44141423,0.00037805,4]
[423157796,1779897049000,-6063.0,0.00037821,2]
[423157787,1779897049000,-163.32966606,0.00037808,60]
[423157790,1779897049000,-1014.616,0.00037821,2]
[423157764,1779897049000,-199.97,0.00037568,120]
[423157781,1779897049000,-2100.0,0.0003769,60]
[423157768,1779897049000,-152.0,0.00037585,120]
[423157748,1779897049000,-160.43,0.0003716,60]
[423157760,1779897049000,-150.0,0.00037449,2]
[423157793,1779897049000,-1272.0,0.00037821,2]
[423157734,1779897049000,-237.06,0.00036715,30]
[423157735,1779897049000,-6650.89004576,0.0003677,2]
[423157737,1779897049000,-6650.89004576,0.00036818,2]
[423157746,1779897049000,-2000.0,0.000371,7]
[423157740,1779897049000,-272.87,0.00036863,30]
[423157747,1779897049000,-6650.89004576,0.00037103,2]
[423157739,1779897049000,-386.03009434,0.00036833,120]
[423157743,1779897049000,-500.0,0.00036966,37]
[423157742,1779897049000,-138380.5007,0.00036885,30]
[423157738,1779897049000,-6650.89004576,0.00036829,2]
[423157741,1779897049000,-150.0,0.0003688,2]
[423157744,1779897049000,-1212.0,0.00036984,2]
[423157762,1779897049000,-873.21658609,0.000375,2]
[423157745,1779897049000,-6650.89004576,0.00037038,2]
[423157751,1779897049000,-6650.89004576,0.0003725,2]
[423157750,1779897049000,-6650.89004576,0.00037212,2]
[423157756,1779897049000,-157.90708069,0.000374,30]
[423157752,1779897049000,-6650.89004576,0.00037307,2]
[423157753,1779897049000,-157.90300786,0.00037354,2]
[423157755,1779897049000,-157.90708069,0.000374,30]
[423157754,1779897049000,-467.50935312,0.00037365,2]
[423157758,1779897049000,-726.00823548,0.000374,30]
[423157759,1779897049000,-500.0,0.00037416,60]
[423157757,1779897049000,-726.0082355,0.000374,30]
[423157761,1779897049000,-1324.0,0.00037451,2]
[423157771,1779897049000,-141358.0,0.000376,30]
[423157772,1779897049000,-190.97,0.000376,30]
[423157749,1779897049000,-6650.89004576,0.00037197,2]
[423157794,1779897049000,-1236.947,0.00037821,2]
[423157736,1779897049000,-247.49,0.00036771,30]
[423157795,1779897049000,-418.0,0.00037821,2]
[423157828,1779897049000,-1266.684672,0.00037899,7]
[423157831,1779897049000,-151.0,0.00037899,7]
[423157832,1779897049000,-151.0,0.00037899,7]
[423157836,1779897049000,-151.0,0.00037899,7]
[423157835,1779897049000,-151.0,0.00037899,7]
[423157833,1779897049000,-167.595544,0.00037899,7]
[423157834,1779897049000,-151.0,0.00037899,7]
[423157837,1779897049000,-1254.88839,0.00037899,7]
[423157838,1779897049000,-1254.88839,0.00037899,7]
[423157840,1779897049000,-1254.88839,0.00037899,7]
[423157842,1779897049000,-1416.22735,0.00037899,7]
[423157841,1779897049000,-1416.22735,0.00037899,7]
[423157843,1779897049000,-1416.22735,0.00037899,7]
[423157830,1779897049000,-151.0,0.00037899,7]
[423157845,1779897049000,-322.693275,0.00037899,7]
[423157839,1779897049000,-1254.88839,0.00037899,7]
[423157848,1779897049000,-322.693275,0.00037899,7]
[423157846,1779897049000,-151.0,0.00037899,7]
[423157849,1779897049000,-322.693275,0.00037899,7]
[423157844,1779897049000,-1416.22735,0.00037899,7]
[423157850,1779897049000,-513.192001,0.00037899,7]
[423157851,1779897049000,-513.192001,0.00037899,7]
[423157852,1779897049000,-513.192001,0.00037899,7]
[423157857,1779897049000,-462.613322,0.00037899,7]
[423157854,1779897049000,-151.880331,0.00037899,7]
[423157792,1779897049000,-1356.0,0.00037821,2]
[423157855,1779897049000,-462.613322,0.00037899,7]
[423157856,1779897049000,-462.613322,0.00037899,7]
[423157847,1779897049000,-322.693275,0.00037899,7]
[423157829,1779897049000,-1266.684672,0.00037899,7]
[423157853,1779897049000,-513.192001,0.00037899,7]
[423157827,1779897049000,-1266.684672,0.00037899,7]
[423157825,1779897049000,-151.0,0.00037899,7]
[423157791,1779897049000,-3548.0,0.00037821,2]
[423157801,1779897049000,-300.0,0.00037898,10]
[423157802,1779897049000,-666.0,0.00037898,30]
[423157803,1779897049000,-300.0,0.00037898,10]
[423157810,1779897049000,-1099.01031238,0.00037898,30]
[423157804,1779897049000,-666.0,0.00037898,30]
[423157800,1779897049000,-666.0,0.00037898,30]
[423157805,1779897049000,-300.0,0.00037898,10]
[423157807,1779897049000,-670.58118315,0.00037898,30]
[423157806,1779897049000,-300.0,0.00037898,10]
[423157808,1779897049000,-1170.06932272,0.00037898,30]
[423157809,1779897049000,-1170.06932272,0.00037898,30]
[423157823,1779897049000,-251.318471,0.00037899,7]
[423157799,1779897049000,-300.0,0.00037898,10]
[423157822,1779897049000,-151.0,0.00037899,7]
[423157812,1779897049000,-48688.0,0.00037899,2]
[423157818,1779897049000,-151.0,0.00037899,7]
[423157820,1779897049000,-151.0,0.00037899,7]
[423157816,1779897049000,-151.0,0.00037899,7]
[423157821,1779897049000,-151.0,0.00037899,7]
[423157824,1779897049000,-151.0,0.00037899,7]
[423157815,1779897049000,-151.0,0.00037899,7]
[423157811,1779897049000,-192.51812993,0.00037899,31]
[423157819,1779897049000,-151.0,0.00037899,7]
[423157826,1779897049000,-1266.684672,0.00037899,7]
[423157817,1779897049000,-154.547589,0.00037899,7]
[423157813,1779897049000,-1971772.0,0.00037899,2]
[423157814,1779897049000,-610106.0,0.00037899,2]
[423157885,1779897050000,-151.0,0.00038,120]
[423157896,1779897050000,-150.0,0.00038033,14]
[423157890,1779897050000,-163.0,0.00038002,11]
[423157900,1779897050000,-466.2,0.00038125,30]
[423157892,1779897050000,-300.0,0.00038003,10]
[423157893,1779897050000,-300.0,0.00038003,10]
[423157891,1779897050000,-1589.0,0.00038003,11]
[423157894,1779897050000,-163.0,0.00038004,11]
[423157898,1779897050000,-500.0,0.00038075,43]
[423157897,1779897050000,-168.1722,0.00038059,2]
[423157889,1779897050000,-150.0,0.00038,30]
[423157904,1779897050000,-2317.0,0.00038157,11]
[423157899,1779897050000,-163.0,0.00038103,11]
[423157902,1779897050000,-300.0,0.00038156,10]
[423157901,1779897050000,-300.0,0.00038156,10]
[423157908,1779897050000,-300.0,0.00038214,10]
[423157913,1779897050000,-300.0,0.00038299,10]
[423157912,1779897050000,-500.0,0.00038238,60]
[423157905,1779897050000,-157.90300786,0.00038176,2]
[423157906,1779897050000,-2000.0,0.000382,7]
[423157903,1779897050000,-300.0,0.00038156,10]
[423157909,1779897050000,-240.87599505,0.00038214,10]
[423157907,1779897050000,-300.0,0.00038214,10]
[423157884,1779897050000,-17938.53937502,0.00038,7]